[Event "Late-Titled-Tuesday-Blitz-March-05-2024"]
[Site "Chess.com"]
[Date "2024.03.05"]
[Round "2"]
[White "SaqoChess_Twitch"]
[Black "Elsa167"]
[Result "1-0"]
[WhiteElo "2613"]
[BlackElo "2890"]
[TimeControl "180+1"]
[EndTime "14:18:30 PST"]
[Termination "SaqoChess_Twitch won on time"]

1. d4 {[%clk 0:02:59.6]} 1... d6 {[%clk 0:02:59.6]} 2. Nf3 {[%clk 0:02:56.9]}
2... Nf6 {[%clk 0:02:59.6]} 3. e3 {[%clk 0:02:56.8]} 3... g6 {[%clk 0:02:59.9]}
4. Be2 {[%clk 0:02:56.8]} 4... Bg7 {[%clk 0:03:00.5]} 5. O-O {[%clk 0:02:57.7]}
5... O-O {[%clk 0:03:01.1]} 6. b3 {[%clk 0:02:58.5]} 6... b6 {[%clk 0:03:00.1]}
7. Bb2 {[%clk 0:02:59]} 7... Bb7 {[%clk 0:03:00.5]} 8. Nbd2 {[%clk 0:02:59.9]}
8... Nbd7 {[%clk 0:03:00.7]} 9. c4 {[%clk 0:03:00.5]} 9... e6 {[%clk 0:03:00.1]}
10. Qc2 {[%clk 0:03:00.4]} 10... a5 {[%clk 0:03:00.2]} 11. a3 {[%clk 0:03:00.5]}
11... Qe7 {[%clk 0:03:00.3]} 12. b4 {[%clk 0:03:01.1]} 12... e5 {[%clk
0:02:58.5]} 13. dxe5 {[%clk 0:03:00.8]} 13... dxe5 {[%clk 0:02:55.2]} 14. c5
{[%clk 0:03:01.1]} 14... bxc5 {[%clk 0:02:33.9]} 15. bxc5 {[%clk 0:03:00.8]}
15... Bc6 {[%clk 0:02:11.9]} 16. Rfc1 {[%clk 0:02:56.2]} 16... Rfd8 {[%clk
0:02:01]} 17. Nc4 {[%clk 0:02:56.3]} 17... Ne4 {[%clk 0:01:59.2]} 18. a4 {[%clk
0:02:40.6]} 18... Ndxc5 {[%clk 0:01:39.5]} 19. Bxe5 {[%clk 0:02:35.2]} 19... Bd5
{[%clk 0:01:10.5]} 20. Bxg7 {[%clk 0:02:31.4]} 20... Kxg7 {[%clk 0:01:11.4]} 21.
Nce5 {[%clk 0:02:27.5]} 21... Nb3 {[%clk 0:00:58.6]} 22. Bc4 {[%clk 0:01:41.4]}
22... Nxa1 {[%clk 0:00:55.3]} 23. Rxa1 {[%clk 0:01:40.6]} 23... Qf6 {[%clk
0:00:50.1]} 24. Rc1 {[%clk 0:01:33.5]} 24... Bxc4 {[%clk 0:00:46.1]} 25. Qxe4
{[%clk 0:01:31.7]} 25... Bd5 {[%clk 0:00:43.5]} 26. Qg4 {[%clk 0:01:13.1]} 26...
Bxf3 {[%clk 0:00:43.2]} 27. Nxf3 {[%clk 0:01:14]} 27... Rab8 {[%clk 0:00:37]}
28. h4 {[%clk 0:01:13.7]} 28... Rb4 {[%clk 0:00:36.4]} 29. Qg3 {[%clk
0:01:14.2]} 29... Qd6 {[%clk 0:00:32]} 30. Qg5 {[%clk 0:01:12.2]} 30... Rdb8
{[%clk 0:00:26.7]} 31. h5 {[%clk 0:01:09.3]} 31... h6 {[%clk 0:00:18.8]} 32.
Qxa5 {[%clk 0:01:09.3]} 32... Rb1 {[%clk 0:00:18.8]} 33. Qc3+ {[%clk 0:01:07.6]}
33... Qf6 {[%clk 0:00:18.8]} 34. Qxc7 {[%clk 0:01:00]} 34... Rxc1+ {[%clk
0:00:15.3]} 35. Qxc1 {[%clk 0:01:00.9]} 35... Qb2 {[%clk 0:00:12.6]} 36. Qc5
{[%clk 0:00:49.7]} 36... g5 {[%clk 0:00:09.5]} 37. Nd4 {[%clk 0:00:43.6]} 37...
Qb1+ {[%clk 0:00:10.1]} 38. Kh2 {[%clk 0:00:43.7]} 38... Qe4 {[%clk 0:00:10.8]}
39. Nf5+ {[%clk 0:00:32]} 39... Kf6 {[%clk 0:00:07.6]} 40. Qd6+ {[%clk
0:00:30.4]} 40... Kxf5 {[%clk 0:00:06]} 41. Qxb8 {[%clk 0:00:30.3]} 41... Qh4+
{[%clk 0:00:05]} 42. Kg1 {[%clk 0:00:30.5]} 42... Qxa4 {[%clk 0:00:05.9]} 43.
Qc8+ {[%clk 0:00:20.7]} 43... Kf6 {[%clk 0:00:04.8]} 44. Qh8+ {[%clk 0:00:20.9]}
44... Kf5 {[%clk 0:00:04.2]} 45. Qh7+ {[%clk 0:00:21.2]} 45... Kg4 {[%clk
0:00:02.8]} 46. Qxf7 {[%clk 0:00:19.6]} 46... Qd1+ {[%clk 0:00:02.1]} 47. Kh2
{[%clk 0:00:20]} 47... Kh4 {[%clk 0:00:02.6]} 48. g3+ {[%clk 0:00:12.8]} 48...
Kg4 {[%clk 0:00:02.6]} 49. Kg2 {[%clk 0:00:12.8]} 49... Qe2 {[%clk 0:00:01.3]}
50. Qf6 {[%clk 0:00:07]} 50... Kxh5 {[%clk 0:00:01.2]} 51. Qf5 {[%clk
0:00:06.6]} 1-0

[Event "Late-Titled-Tuesday-Blitz-March-05-2024"]
[Site "Chess.com"]
[Date "2024.03.05"]
[Round "2"]
[White "BilicVladimir"]
[Black "VladimirKramnik"]
[Result "0-1"]
[WhiteElo "2627"]
[BlackElo "2973"]
[TimeControl "180+1"]
[EndTime "14:18:31 PST"]
[Termination "VladimirKramnik won by resignation"]

1. e4 {[%clk 0:03:00.9]} 1... c5 {[%clk 0:02:58]} 2. Nf3 {[%clk 0:03:00.1]} 2...
d6 {[%clk 0:02:57.9]} 3. Bb5+ {[%clk 0:02:58.8]} 3... Nd7 {[%clk 0:02:56.8]} 4.
O-O {[%clk 0:02:58]} 4... Nf6 {[%clk 0:02:56.1]} 5. Re1 {[%clk 0:02:57.4]} 5...
a6 {[%clk 0:02:55.1]} 6. Bf1 {[%clk 0:02:57]} 6... b6 {[%clk 0:02:54.4]} 7. c4
{[%clk 0:02:55.9]} 7... Bb7 {[%clk 0:02:54.9]} 8. Nc3 {[%clk 0:02:56.1]} 8... g6
{[%clk 0:02:54.7]} 9. d4 {[%clk 0:02:55.9]} 9... cxd4 {[%clk 0:02:55.2]} 10.
Nxd4 {[%clk 0:02:55.8]} 10... Bg7 {[%clk 0:02:55.9]} 11. Nd5 {[%clk 0:02:54.5]}
11... O-O {[%clk 0:02:52.4]} 12. b3 {[%clk 0:02:48.4]} 12... e6 {[%clk
0:02:50.3]} 13. Nxf6+ {[%clk 0:02:47.7]} 13... Nxf6 {[%clk 0:02:50.7]} 14. f3
{[%clk 0:02:38.3]} 14... b5 {[%clk 0:02:45.8]} 15. cxb5 {[%clk 0:02:34.8]} 15...
axb5 {[%clk 0:02:44.7]} 16. Be3 {[%clk 0:02:32.6]} 16... b4 {[%clk 0:02:35.9]}
17. Qd2 {[%clk 0:02:32.4]} 17... e5 {[%clk 0:02:26.5]} 18. Nc2 {[%clk
0:02:24.4]} 18... d5 {[%clk 0:02:26.9]} 19. Bc5 {[%clk 0:02:19.7]} 19... dxe4
{[%clk 0:02:22.8]} 20. Qxb4 {[%clk 0:02:15.9]} 20... Qc7 {[%clk 0:01:58.5]} 21.
Qb6 {[%clk 0:01:54.4]} 21... Qxb6 {[%clk 0:01:55.6]} 22. Bxb6 {[%clk 0:01:54.4]}
22... exf3 {[%clk 0:01:56.2]} 23. gxf3 {[%clk 0:01:53.3]} 23... Bxf3 {[%clk
0:01:55.6]} 24. a4 {[%clk 0:01:52.1]} 24... Nd5 {[%clk 0:01:49.6]} 25. Bc5
{[%clk 0:01:49.6]} 25... Rfc8 {[%clk 0:01:46.5]} 26. b4 {[%clk 0:01:49.3]} 26...
Nxb4 {[%clk 0:01:43.7]} 27. Bxb4 {[%clk 0:01:46.5]} 27... Rxc2 {[%clk
0:01:44.1]} 28. a5 {[%clk 0:01:46.3]} 28... e4 {[%clk 0:01:43.3]} 29. Rad1
{[%clk 0:01:38.7]} 29... Rb2 {[%clk 0:01:31.4]} 30. Be7 {[%clk 0:01:17.3]} 30...
Bxd1 {[%clk 0:01:16.5]} 31. Rxd1 {[%clk 0:01:16.9]} 31... Be5 {[%clk 0:01:16]}
32. a6 {[%clk 0:01:13.9]} 32... e3 {[%clk 0:01:09.9]} 33. Bc4 {[%clk 0:01:05.3]}
33... Rd2 {[%clk 0:00:49.1]} 34. Re1 {[%clk 0:00:51.1]} 34... Bd4 {[%clk
0:00:46.7]} 35. Re2 {[%clk 0:00:46.3]} 35... Rc8 {[%clk 0:00:44.3]} 36. Bb5
{[%clk 0:00:41.9]} 36... Rcc2 {[%clk 0:00:39.7]} 37. Kf1 {[%clk 0:00:40.6]}
37... Rb2 {[%clk 0:00:31.6]} 38. Bc4 {[%clk 0:00:39.2]} 38... Rb1+ {[%clk
0:00:22.4]} 39. Kg2 {[%clk 0:00:38.5]} 39... Re1 {[%clk 0:00:19.8]} 40. Kf3
{[%clk 0:00:36.9]} 40... Rexe2 {[%clk 0:00:14]} 41. Bxe2 {[%clk 0:00:37.8]}
41... Ba7 {[%clk 0:00:13.6]} 42. Bg5 {[%clk 0:00:34]} 42... Ra2 {[%clk
0:00:12.7]} 43. Bxe3 {[%clk 0:00:32.4]} 43... Ra3 {[%clk 0:00:12.5]} 44. Kf4
{[%clk 0:00:27.9]} 44... Rxe3 {[%clk 0:00:12.6]} 45. Bb5 {[%clk 0:00:28.1]}
45... Rb3 {[%clk 0:00:12.4]} 46. Bc6 {[%clk 0:00:27.2]} 46... Rb4+ {[%clk
0:00:12.8]} 47. Kf3 {[%clk 0:00:26.9]} 47... Kg7 {[%clk 0:00:12.1]} 48. Bb7
{[%clk 0:00:26.2]} 48... h5 {[%clk 0:00:12.6]} 49. Kg2 {[%clk 0:00:26]} 49...
Kf6 {[%clk 0:00:12.6]} 50. Kf3 {[%clk 0:00:26.9]} 50... Ke5 {[%clk 0:00:12.6]}
51. Bc6 {[%clk 0:00:26.7]} 51... f5 {[%clk 0:00:12.5]} 52. Be8 {[%clk
0:00:27.6]} 52... g5 {[%clk 0:00:12.6]} 53. Bxh5 {[%clk 0:00:27.2]} 53... g4+
{[%clk 0:00:12.5]} 54. Kg3 {[%clk 0:00:26.4]} 54... Rb3+ {[%clk 0:00:12.5]} 55.
Kh4 {[%clk 0:00:26.7]} 55... Kf4 {[%clk 0:00:12]} 56. Bxg4 {[%clk 0:00:24.7]}
56... fxg4 {[%clk 0:00:11.4]} 57. Kh5 {[%clk 0:00:25.6]} 57... Rh3+ {[%clk
0:00:11.3]} 58. Kg6 {[%clk 0:00:26.5]} 58... Rxh2 {[%clk 0:00:11.9]} 0-1

[Event "Late-Titled-Tuesday-Blitz-March-05-2024"]
[Site "Chess.com"]
[Date "2024.03.05"]
[Round "2"]
[White "larsmandreassen"]
[Black "andrzej"]
[Result "1/2-1/2"]
[WhiteElo "2238"]
[BlackElo "2487"]
[TimeControl "180+1"]
[EndTime "14:18:33 PST"]
[Termination "Game drawn - insufficient material"]

1. d4 {[%clk 0:02:58.6]} 1... d5 {[%clk 0:02:59.8]} 2. Nf3 {[%clk 0:02:58.5]}
2... Nf6 {[%clk 0:02:59.8]} 3. c4 {[%clk 0:02:58.8]} 3... dxc4 {[%clk
0:03:00.2]} 4. e3 {[%clk 0:02:58.2]} 4... e6 {[%clk 0:03:00]} 5. Bxc4 {[%clk
0:02:58.2]} 5... c5 {[%clk 0:03:00.6]} 6. O-O {[%clk 0:02:57.8]} 6... Nc6 {[%clk
0:03:01.2]} 7. Nc3 {[%clk 0:02:56.3]} 7... a6 {[%clk 0:03:01.7]} 8. a3 {[%clk
0:02:52.4]} 8... b5 {[%clk 0:02:55.1]} 9. Ba2 {[%clk 0:02:51.5]} 9... Bb7 {[%clk
0:02:51]} 10. dxc5 {[%clk 0:02:40.7]} 10... Qxd1 {[%clk 0:02:50.1]} 11. Rxd1
{[%clk 0:02:41.6]} 11... Bxc5 {[%clk 0:02:50.6]} 12. b4 {[%clk 0:02:41.8]} 12...
Be7 {[%clk 0:02:50.3]} 13. Bb2 {[%clk 0:02:42]} 13... O-O {[%clk 0:02:48.6]} 14.
Rd2 {[%clk 0:02:28.8]} 14... Rfd8 {[%clk 0:02:48.8]} 15. Rad1 {[%clk 0:02:28.8]}
15... Rac8 {[%clk 0:02:46]} 16. Nd4 {[%clk 0:02:16.6]} 16... Nxd4 {[%clk
0:02:42.7]} 17. Rxd4 {[%clk 0:02:16.7]} 17... Rxd4 {[%clk 0:02:38.5]} 18. Rxd4
{[%clk 0:02:16.4]} 18... Kf8 {[%clk 0:02:32]} 19. f3 {[%clk 0:02:16.2]} 19...
Ke8 {[%clk 0:02:31.2]} 20. Kf1 {[%clk 0:02:10.9]} 20... Bd8 {[%clk 0:02:26.1]}
21. Ke2 {[%clk 0:02:08.2]} 21... Bb6 {[%clk 0:02:24]} 22. Rd2 {[%clk 0:02:08.6]}
22... Rd8 {[%clk 0:02:15.2]} 23. Rxd8+ {[%clk 0:02:06.1]} 23... Kxd8 {[%clk
0:02:14.6]} 24. e4 {[%clk 0:01:58.6]} 24... Nd7 {[%clk 0:02:10.6]} 25. Nd1
{[%clk 0:01:55.7]} 25... g6 {[%clk 0:02:04.7]} 26. Ne3 {[%clk 0:01:50.4]} 26...
h5 {[%clk 0:02:01.4]} 27. g4 {[%clk 0:01:41.8]} 27... hxg4 {[%clk 0:01:59.4]}
28. Nxg4 {[%clk 0:01:37]} 28... Ke7 {[%clk 0:01:56.9]} 29. Ne5 {[%clk
0:01:19.5]} 29... Nxe5 {[%clk 0:01:47.8]} 30. Bxe5 {[%clk 0:01:20.4]} 30... f5
{[%clk 0:01:47]} 31. exf5 {[%clk 0:01:14.3]} 31... exf5 {[%clk 0:01:47.9]} 32.
h4 {[%clk 0:01:00.2]} 32... Bc8 {[%clk 0:01:44.4]} 33. f4 {[%clk 0:00:59.7]}
33... Be6 {[%clk 0:01:43.9]} 34. Bb1 {[%clk 0:00:46.2]} 34... Bc4+ {[%clk
0:01:41.4]} 35. Kf3 {[%clk 0:00:43.5]} 35... Ke6 {[%clk 0:01:41.9]} 36. Bc2
{[%clk 0:00:37.3]} 36... Bd8 {[%clk 0:01:35.1]} 37. Kg3 {[%clk 0:00:36.7]} 37...
Kd5 {[%clk 0:01:32.9]} 38. Bd1 {[%clk 0:00:33.9]} 38... Ke4 {[%clk 0:01:27.9]}
39. Bf3+ {[%clk 0:00:33.5]} 39... Kd3 {[%clk 0:01:25.7]} 40. Bb7 {[%clk
0:00:32.7]} 40... a5 {[%clk 0:01:25.8]} 41. bxa5 {[%clk 0:00:22]} 41... Bxa5
{[%clk 0:01:25.6]} 42. Bc6 {[%clk 0:00:19]} 42... Be1+ {[%clk 0:01:21]} 43. Kh3
{[%clk 0:00:17.7]} 43... Kc2 {[%clk 0:01:01]} 44. Be8 {[%clk 0:00:17]} 44... Kb3
{[%clk 0:00:57]} 45. Bd6 {[%clk 0:00:15]} 45... Bc3 {[%clk 0:00:54.6]} 46. Bxg6
{[%clk 0:00:14.4]} 46... Bb2 {[%clk 0:00:55]} 47. Bxf5 {[%clk 0:00:13.4]} 47...
Bxa3 {[%clk 0:00:55.6]} 48. Bxa3 {[%clk 0:00:13]} 48... Kxa3 {[%clk 0:00:56.5]}
49. h5 {[%clk 0:00:12.5]} 49... Kb2 {[%clk 0:00:56.6]} 50. Bd7 {[%clk
0:00:08.5]} 50... b4 {[%clk 0:00:52.7]} 51. h6 {[%clk 0:00:08.7]} 51... Bg8
{[%clk 0:00:51.3]} 52. f5 {[%clk 0:00:07.5]} 52... b3 {[%clk 0:00:50.6]} 53. f6
{[%clk 0:00:08]} 53... Kc1 {[%clk 0:00:49.7]} 54. Bf5 {[%clk 0:00:07.8]} 54...
b2 {[%clk 0:00:49.7]} 55. h7 {[%clk 0:00:07.7]} 55... Be6 {[%clk 0:00:48.7]} 56.
h8=Q {[%clk 0:00:05]} 56... Bxf5+ {[%clk 0:00:48.6]} 57. Kg3 {[%clk 0:00:05.2]}
57... b1=Q {[%clk 0:00:48.8]} 58. Qh1+ {[%clk 0:00:05.2]} 58... Kb2 {[%clk
0:00:44]} 59. Qxb1+ {[%clk 0:00:05.7]} 59... Kxb1 {[%clk 0:00:42.8]} 60. Kf4
{[%clk 0:00:06.6]} 60... Bg6 {[%clk 0:00:42.5]} 61. Kg5 {[%clk 0:00:06.7]} 61...
Be8 {[%clk 0:00:42.6]} 62. Kh6 {[%clk 0:00:07.2]} 62... Bf7 {[%clk 0:00:42.8]}
63. Kg7 {[%clk 0:00:08.1]} 63... Ba2 {[%clk 0:00:43.3]} 64. Kf8 {[%clk
0:00:07.1]} 64... Bb3 {[%clk 0:00:43.2]} 65. Ke7 {[%clk 0:00:07.7]} 65... Ba2
{[%clk 0:00:43.3]} 66. f7 {[%clk 0:00:08.2]} 66... Bxf7 {[%clk 0:00:43.3]}
1/2-1/2

[Event "Late-Titled-Tuesday-Blitz-March-05-2024"]
[Site "Chess.com"]
[Date "2024.03.05"]
[Round "2"]
[White "Lion_DL"]
[Black "martinmena"]
[Result "0-1"]
[WhiteElo "2497"]
[BlackElo "2300"]
[TimeControl "180+1"]
[EndTime "14:18:41 PST"]
[Termination "martinmena won by resignation"]

1. d4 {[%clk 0:03:00.9]} 1... d5 {[%clk 0:02:59]} 2. c4 {[%clk 0:03:00.5]} 2...
e6 {[%clk 0:02:58.9]} 3. Nc3 {[%clk 0:02:57.8]} 3... Nf6 {[%clk 0:02:58.8]} 4.
cxd5 {[%clk 0:02:58.1]} 4... exd5 {[%clk 0:02:59.7]} 5. Bg5 {[%clk 0:02:58.3]}
5... Be7 {[%clk 0:03:00]} 6. e3 {[%clk 0:02:58.8]} 6... Nbd7 {[%clk 0:02:59.8]}
7. Qc2 {[%clk 0:02:58.8]} 7... c6 {[%clk 0:02:59.4]} 8. Bd3 {[%clk 0:02:58.4]}
8... O-O {[%clk 0:03:00.1]} 9. Nge2 {[%clk 0:02:58]} 9... Re8 {[%clk 0:03:00.6]}
10. O-O {[%clk 0:02:57.1]} 10... Nf8 {[%clk 0:03:01.1]} 11. h3 {[%clk
0:02:55.5]} 11... Ne4 {[%clk 0:02:45.9]} 12. Bxe7 {[%clk 0:02:51.6]} 12... Qxe7
{[%clk 0:02:46.8]} 13. Nxe4 {[%clk 0:02:50.9]} 13... dxe4 {[%clk 0:02:45.7]} 14.
Bc4 {[%clk 0:02:51]} 14... Be6 {[%clk 0:02:44]} 15. Bxe6 {[%clk 0:02:45.8]}
15... Qxe6 {[%clk 0:02:44.9]} 16. Nf4 {[%clk 0:02:44.4]} 16... Qd6 {[%clk
0:02:44.9]} 17. Rab1 {[%clk 0:02:40.2]} 17... a5 {[%clk 0:02:42.7]} 18. Rfc1
{[%clk 0:02:37]} 18... Ne6 {[%clk 0:02:38.7]} 19. Qxe4 {[%clk 0:02:30.3]} 19...
Nxf4 {[%clk 0:02:35.3]} 20. Qxf4 {[%clk 0:02:31.2]} 20... Qxf4 {[%clk
0:02:35.2]} 21. exf4 {[%clk 0:02:32.1]} 21... Re4 {[%clk 0:02:35.2]} 22. Rd1
{[%clk 0:02:26.3]} 22... Rxf4 {[%clk 0:02:33.5]} 23. d5 {[%clk 0:02:26.9]} 23...
cxd5 {[%clk 0:02:32.1]} 24. Rxd5 {[%clk 0:02:27.8]} 24... Rb4 {[%clk 0:02:30.4]}
25. Rbd1 {[%clk 0:02:26.9]} 25... g6 {[%clk 0:02:29.6]} 26. b3 {[%clk
0:02:26.4]} 26... a4 {[%clk 0:02:28.8]} 27. Rd8+ {[%clk 0:02:23.7]} 27... Rxd8
{[%clk 0:02:28.4]} 28. Rxd8+ {[%clk 0:02:24.6]} 28... Kg7 {[%clk 0:02:28.9]} 29.
bxa4 {[%clk 0:02:21]} 29... Rxa4 {[%clk 0:02:29.8]} 30. Rb8 {[%clk 0:02:21.1]}
30... Ra7 {[%clk 0:02:21.9]} 31. f3 {[%clk 0:02:12.5]} 31... Kf6 {[%clk
0:02:21]} 32. Kh2 {[%clk 0:02:12.6]} 32... h5 {[%clk 0:02:21]} 33. Kg3 {[%clk
0:02:11.5]} 33... Kg7 {[%clk 0:02:16.5]} 34. h4 {[%clk 0:02:01.1]} 34... Kf6
{[%clk 0:02:14]} 35. Kh3 {[%clk 0:01:58.4]} 35... Ke7 {[%clk 0:02:09.9]} 36. a4
{[%clk 0:01:56.7]} 36... Kd7 {[%clk 0:01:48.3]} 37. Kg3 {[%clk 0:01:55.9]} 37...
Kc7 {[%clk 0:01:34.8]} 38. Rf8 {[%clk 0:01:56.1]} 38... Rxa4 {[%clk 0:01:23.5]}
39. Rxf7+ {[%clk 0:01:55.6]} 39... Kb8 {[%clk 0:01:22.7]} 40. Rf6 {[%clk
0:01:52.3]} 40... Ra6 {[%clk 0:01:22.7]} 41. Rf8+ {[%clk 0:01:47.5]} 41... Ka7
{[%clk 0:01:14.6]} 42. Kf4 {[%clk 0:01:47.8]} 42... b5 {[%clk 0:01:14.5]} 43.
Ke5 {[%clk 0:01:38.2]} 43... Rb6 {[%clk 0:01:09.1]} 44. Kd4 {[%clk 0:01:37.2]}
44... b4 {[%clk 0:01:09.4]} 45. Rc8 {[%clk 0:01:32]} 45... b3 {[%clk 0:01:08.7]}
46. Rc1 {[%clk 0:01:32.6]} 46... b2 {[%clk 0:01:08.6]} 47. Rb1 {[%clk
0:01:33.2]} 47... Rb4+ {[%clk 0:00:32.1]} 48. Kc3 {[%clk 0:01:32.1]} 48... Rxh4
{[%clk 0:00:31.3]} 49. Rxb2 {[%clk 0:01:32.4]} 49... Rh2 {[%clk 0:00:21.5]} 50.
Kd3 {[%clk 0:01:12.7]} 50... h4 {[%clk 0:00:20.8]} 51. Ke3 {[%clk 0:01:09.5]}
51... h3 {[%clk 0:00:19.1]} 52. Ra2+ {[%clk 0:01:07]} 52... Kb6 {[%clk
0:00:18.5]} 53. Rb2+ {[%clk 0:01:07.2]} 53... Kc6 {[%clk 0:00:18.4]} 54. Rc2+
{[%clk 0:01:07.6]} 54... Kd6 {[%clk 0:00:18.7]} 55. Rd2+ {[%clk 0:01:08.3]}
55... Ke5 {[%clk 0:00:19]} 56. gxh3 {[%clk 0:01:07.8]} 56... Rxh3 {[%clk
0:00:12.9]} 57. Ra2 {[%clk 0:01:05.5]} 57... Kf6 {[%clk 0:00:11.7]} 58. Kf4
{[%clk 0:01:03.9]} 58... Rh4+ {[%clk 0:00:12.3]} 59. Kg3 {[%clk 0:01:04.3]}
59... Rc4 {[%clk 0:00:12.7]} 60. Ra6+ {[%clk 0:01:04.7]} 60... Kf5 {[%clk
0:00:12.9]} 61. Ra5+ {[%clk 0:01:05.1]} 61... Kf6 {[%clk 0:00:13.3]} 62. f4
{[%clk 0:01:05.6]} 62... Rc3+ {[%clk 0:00:09.4]} 63. Kg4 {[%clk 0:01:06.3]}
63... Rc1 {[%clk 0:00:09.3]} 64. Ra6+ {[%clk 0:01:06.7]} 64... Kf7 {[%clk
0:00:09.8]} 65. Kf3 {[%clk 0:01:02.8]} 65... Rg1 {[%clk 0:00:10.3]} 66. Ke4
{[%clk 0:01:01.9]} 66... Re1+ {[%clk 0:00:10.4]} 67. Kf3 {[%clk 0:01:01.9]}
67... Rf1+ {[%clk 0:00:10.8]} 68. Ke3 {[%clk 0:01:02.5]} 68... Re1+ {[%clk
0:00:11.3]} 69. Kf2 {[%clk 0:01:03.3]} 69... Rd1 {[%clk 0:00:11.6]} 70. Ra5
{[%clk 0:01:02.6]} 70... Kf6 {[%clk 0:00:10.8]} 71. Ke2 {[%clk 0:01:03.1]} 71...
Rd4 {[%clk 0:00:11]} 72. Ke3 {[%clk 0:01:03.4]} 72... Rd1 {[%clk 0:00:11.6]} 73.
Ra6+ {[%clk 0:01:02.7]} 73... Kf5 {[%clk 0:00:10.5]} 74. Ra5+ {[%clk 0:01:03.2]}
74... Kf6 {[%clk 0:00:10.9]} 75. Rg5 {[%clk 0:01:01.5]} 75... Re1+ {[%clk
0:00:11.2]} 76. Kf2 {[%clk 0:01:01.2]} 76... Re4 {[%clk 0:00:10.1]} 77. Kf3
{[%clk 0:01:00.6]} 77... Ra4 {[%clk 0:00:10.3]} 78. Ra5 {[%clk 0:01:01.5]} 78...
Rxa5 {[%clk 0:00:10.4]} 0-1

[Event "Late-Titled-Tuesday-Blitz-March-05-2024"]
[Site "Chess.com"]
[Date "2024.03.05"]
[Round "2"]
[White "yosephtaher"]
[Black "Smoking_Crow"]
[Result "0-1"]
[WhiteElo "2917"]
[BlackElo "2620"]
[TimeControl "180+1"]
[EndTime "14:18:44 PST"]
[Termination "Smoking_Crow won by resignation"]

1. d4 {[%clk 0:02:53.9]} 1... Nf6 {[%clk 0:02:59.4]} 2. Nc3 {[%clk 0:02:54.2]}
2... d5 {[%clk 0:02:58.1]} 3. Bf4 {[%clk 0:02:54.3]} 3... c5 {[%clk 0:02:57.9]}
4. e4 {[%clk 0:02:54.3]} 4... dxe4 {[%clk 0:02:53.7]} 5. d5 {[%clk 0:02:46.8]}
5... a6 {[%clk 0:02:50.4]} 6. a4 {[%clk 0:02:46.5]} 6... e6 {[%clk 0:02:39.6]}
7. Bc4 {[%clk 0:02:45.3]} 7... exd5 {[%clk 0:02:34.8]} 8. Nxd5 {[%clk
0:02:46.2]} 8... Nxd5 {[%clk 0:02:33.5]} 9. Bxd5 {[%clk 0:02:44.9]} 9... Be7
{[%clk 0:02:27.7]} 10. Bxe4 {[%clk 0:02:42.1]} 10... Qxd1+ {[%clk 0:02:22.1]}
11. Rxd1 {[%clk 0:02:43]} 11... Nd7 {[%clk 0:02:21.6]} 12. Ne2 {[%clk 0:02:40]}
12... O-O {[%clk 0:02:18.1]} 13. O-O {[%clk 0:02:35.3]} 13... Bf6 {[%clk
0:02:13.6]} 14. b3 {[%clk 0:02:29.7]} 14... Re8 {[%clk 0:01:47.7]} 15. Ng3
{[%clk 0:02:27.7]} 15... Be5 {[%clk 0:01:28.8]} 16. Bxe5 {[%clk 0:02:08.9]}
16... Nxe5 {[%clk 0:01:29.7]} 17. Rfe1 {[%clk 0:02:09.5]} 17... Kf8 {[%clk
0:01:14.6]} 18. h3 {[%clk 0:02:05.6]} 18... Rb8 {[%clk 0:01:10.7]} 19. Kf1
{[%clk 0:01:39.3]} 19... g6 {[%clk 0:01:02.8]} 20. Rd5 {[%clk 0:01:34.9]} 20...
Nd7 {[%clk 0:00:59.9]} 21. f3 {[%clk 0:01:23.3]} 21... b6 {[%clk 0:00:57.5]} 22.
Rd6 {[%clk 0:01:22.1]} 22... f5 {[%clk 0:00:48.7]} 23. Nxf5 {[%clk 0:01:02.9]}
23... gxf5 {[%clk 0:00:46.2]} 24. Bxf5 {[%clk 0:01:03.8]} 24... Rxe1+ {[%clk
0:00:45.6]} 25. Kxe1 {[%clk 0:01:04.7]} 25... Ke7 {[%clk 0:00:37.2]} 26. Rc6
{[%clk 0:01:03.6]} 26... Kd8 {[%clk 0:00:11.1]} 27. Bxh7 {[%clk 0:01:01.1]}
27... Ne5 {[%clk 0:00:09.3]} 28. Rh6 {[%clk 0:01:01.3]} 28... Rb7 {[%clk
0:00:09.1]} 29. Be4 {[%clk 0:01:01]} 29... Re7 {[%clk 0:00:09.2]} 30. g4 {[%clk
0:00:59.9]} 30... Nf7 {[%clk 0:00:07.1]} 31. Rxb6 {[%clk 0:00:59.4]} 31... Ng5
{[%clk 0:00:06.6]} 32. Kf2 {[%clk 0:00:57.4]} 32... Nxe4+ {[%clk 0:00:04.7]} 33.
fxe4 {[%clk 0:00:58.3]} 33... Rxe4 {[%clk 0:00:05.4]} 34. Rc6 {[%clk 0:00:57.2]}
34... Re5 {[%clk 0:00:05.4]} 35. Kg3 {[%clk 0:00:54.6]} 35... Bb7 {[%clk
0:00:05.7]} 36. Rd6+ {[%clk 0:00:54.9]} 36... Kc7 {[%clk 0:00:05.8]} 37. Rd2
{[%clk 0:00:55.1]} 37... Re3+ {[%clk 0:00:05.9]} 38. Kh2 {[%clk 0:00:55.2]}
38... Rc3 {[%clk 0:00:05.7]} 39. Re2 {[%clk 0:00:54.5]} 39... Bc8 {[%clk
0:00:05.8]} 40. Rf2 {[%clk 0:00:52.6]} 40... Kd6 {[%clk 0:00:05.9]} 41. g5
{[%clk 0:00:52.5]} 41... Rxh3+ {[%clk 0:00:03.7]} 42. Kg2 {[%clk 0:00:53]} 42...
Rh4 {[%clk 0:00:04.2]} 43. Rf6+ {[%clk 0:00:52.9]} 43... Ke5 {[%clk 0:00:04.7]}
44. Rf8 {[%clk 0:00:45.8]} 44... Bb7+ {[%clk 0:00:04.8]} 45. Kg3 {[%clk
0:00:45.9]} 45... Rh1 {[%clk 0:00:05.5]} 46. Kg4 {[%clk 0:00:41.9]} 46... Bd5
{[%clk 0:00:05.2]} 47. Re8+ {[%clk 0:00:40.5]} 47... Be6+ {[%clk 0:00:05.5]} 48.
Kf3 {[%clk 0:00:41.1]} 48... Rg1 {[%clk 0:00:05.5]} 49. Ke3 {[%clk 0:00:40.9]}
49... Rxg5 {[%clk 0:00:05.7]} 50. Ra8 {[%clk 0:00:41.3]} 50... Rg3+ {[%clk
0:00:05.5]} 51. Kd2 {[%clk 0:00:41.7]} 51... Rg2+ {[%clk 0:00:06]} 52. Kc1
{[%clk 0:00:38.4]} 52... Bf5 {[%clk 0:00:06.9]} 53. c4 {[%clk 0:00:37.6]} 53...
Rc2+ {[%clk 0:00:06.9]} 54. Kd1 {[%clk 0:00:35.8]} 54... Kd4 {[%clk 0:00:07.4]}
55. Rxa6 {[%clk 0:00:36]} 55... Bd3 {[%clk 0:00:07.3]} 56. a5 {[%clk 0:00:34]}
56... Kc3 {[%clk 0:00:06.2]} 57. Rc6 {[%clk 0:00:27]} 57... Rf2 {[%clk
0:00:06.1]} 58. Re6 {[%clk 0:00:27.5]} 58... Rf1+ {[%clk 0:00:06]} 59. Re1
{[%clk 0:00:27.7]} 59... Rxe1+ {[%clk 0:00:06.3]} 60. Kxe1 {[%clk 0:00:28.6]}
60... Kxb3 {[%clk 0:00:06.8]} 61. a6 {[%clk 0:00:28.9]} 61... Bxc4 {[%clk
0:00:07.1]} 62. a7 {[%clk 0:00:29.8]} 62... Bd5 {[%clk 0:00:08]} 0-1